Cogmind - Beta 11 @@@ ROGUE MODE // 2022.03.27 @ 14:11:35 Player: POG Result: Smashed by cave-in Performance ------------- Evolutions (0) 0 Regions Visited (4) 800 Robots Destroyed (14) 70 Value Destroyed (254) 254 Prototype IDs (29) 580 Alien Tech Used (0) 0 Bonus (300) 300 TOTAL SCORE: 2004 Bonus ------- Aligned with FarCom 300 Cogmind --------- Core Integrity 0/250 Matter 261/300 Energy 250/250 System Corruption 18% Temperature Cool (0) Movement Core (250) Ox4 Location -9/Mines Parts ------- > --- POWER (1) -------- Ion Engine > --- PROPULSION (2) --- (None) > --- UTILITY (2) ------ Small Storage Unit > --- WEAPON (2) ------- Shotgun > --- INVENTORY (8) ---- Light Armor Plating Shield Generator Splice Drone Bay (6/6) Latent Energy Streamer Shotgun Grenade Launcher Peak State ------------ > --- POWER ------------ Ion Engine > --- PROPULSION ------- Aluminum Leg Aluminum Leg > --- UTILITY ---------- Small Storage Unit Splice Drone Bay > --- WEAPON ----------- Latent Energy Streamer Ripper > --- INVENTORY -------- Wheel Structural Scanner Light Armor Plating Shield Generator Shotgun Shotgun Grenade Launcher [Rating: 26] Favorites ----------- Power Ion Engine Engine Ion Engine Propulsion Aluminum Leg Leg Aluminum Leg Wheel Compact Wheel Utility Small Storage Unit Device Structural Scanner Storage Small Storage Unit Protection Light Armor Plating Weapon Light Assault Rifle Energy Gun EM Pulse Gun Energy Cannon Latent Energy Streamer Ballistic Gun Light Assault Rifle Launcher Grenade Launcher Slashing Weapon Ripper Build | -11 -10 -10 -10 -9 ------- Run | Scr Mat Min Exi Min Slots Evolved . | . . . . . Power . | . . . . . Propulsion . | . . . . . Utility . | . . . . . Weapon . | . . . . . Parts Attached 27 | 8 8 2 5 4 Power 2 | 1 1 . . . Engine 2 | 1 1 . . . Core . | . . . . . Reactor . | . . . . . Propulsion 6 | 2 2 . 1 1 Treads . | . . . . . Leg 2 | . 2 . . . Wheel 4 | 2 . . 1 1 Hover . | . . . . . Flight . | . . . . . Utility 9 | 2 3 2 2 . Device 6 | 1 2 1 2 . Storage 1 | 1 . . . . Processor . | . . . . . Hackware . | . . . . . Protection 2 | . 1 1 . . Artifact . | . . . . . Weapon 10 | 3 2 . 2 3 Energy Gun 1 | 1 . . . . Energy Cannon 1 | . . . 1 . Ballistic Gun 5 | 2 1 . . 2 Ballistic Cannon . | . . . . . Launcher 1 | . 1 . . . Special Weapon . | . . . . . Impact Weapon . | . . . . . Slashing Weapon 2 | . . . 1 1 Piercing Weapon . | . . . . . Special Melee Weapon . | . . . . . Unidentified Prototypes 1 | . . . 1 . Parts Lost 11 | . 7 . . 4 Power 1 | . 1 . . . Propulsion 4 | . 2 . . 2 Utility 3 | . 2 . . 1 Weapon 3 | . 2 . . 1 Highest Loss Streak 5 | . 5 . . 4 To Critical Strikes . | . . . . . Average Slot Usage (%) 97 | . 97 100 100 91 Engine 14 | . 14 14 14 14 Leg 16 | . 14 28 28 . Wheel 10 | . 13 . . 20 Device 11 | . 9 14 14 14 Storage 14 | . 14 14 14 14 Protection 1 | . 2 . . . Energy Cannon 3 | . . . 8 10 Ballistic Gun 13 | . 19 14 5 4 Launcher 6 | . 7 14 5 . Slashing Weapon 3 | . . . 8 13 Naked Turns . | . . . . . Heaviest Build 31 | 13 17 15 31 24 Greatest Support 32 | 32 32 20 20 20 Greatest Overweight (x) 2 | . . . 2 2 Average Overweight (x) . | . . . . 1 Largest Inventory Capacity 8 | 8 8 8 8 8 Average Capacity 7 | 7 8 8 8 8 Most Carried 8 | 8 8 8 8 7 Average Carried 6 | 5 6 7 7 6 Final Capacity 8 | 8 8 8 8 8 Final Carried 8 | 6 8 8 6 6 Class Distribution -------------------- 100% | Mutant Dominant Class ---------------- Mutant | -10/Materials Mutant | -10/Mines Mutant | -10/Exiles Mutant | -9/Mines Resources | -11 -10 -10 -10 -9 ----------- Run | Scr Mat Min Exi Min Matter Collected 581 | 210 179 19 . 173 Remotely . | . . . . . Salvage Created 354 | 30 226 . . 98 Parts 34 | 4 19 . . 11 Haulers Intercepted . | . . . . . Recyclers Shooed . | . . . . . Parts Field Recycled . | . . . . . Retrieved Matter . | . . . . . Parts Self-Destructed . | . . . . . Prevented . | . . . . . Kills | -11 -10 -10 -10 -9 ------- Run | Scr Mat Min Exi Min Combat Hostiles Destroyed 12 | . 7 . . 5 Melee 2 | . . . . 2 Guns 7 | . 6 . . 1 AOE 3 | . 1 . . 2 Classes Destroyed 5 | 1 2 . . 2 Worker 1 | . . . . 1 Tunneler 2 | 1 1 . . . Swarmer 7 | . 3 . . 4 Grunt 4 | . 4 . . . Assembled 1 | . . . . 1 Best Kill Streak 5 | 1 3 . . 5 Combat Bots Only 4 | . 3 . . 4 Max Kills in Single Turn 2 | 1 1 . . 2 Gunslinging . | . . . . . Exploded 2 | . 1 . . 2 Melee 1 | . . . . 1 Uniques/NPCs Destroyed . | . . . . . Combat | -11 -10 -10 -10 -9 -------- Run | Scr Mat Min Exi Min Damage Taken 956 | . 537 . . 419 Core 261 | . 182 . . 79 Absorbed by Shields . | . . . . . Core Remaining (%) 100 | 100 . . . . Volleys Fired 37 | 2 30 . . 5 Largest 2 | 2 2 . . 2 Hottest 60 | 60 60 . . 60 Shots Fired 71 | 4 59 . . 8 Gun 68 | 4 58 . . 6 Cannon 2 | . . . . 2 Launcher 1 | . 1 . . . Special . | . . . . . Kinetic 59 | 2 51 . . 6 Thermal . | . . . . . Explosive 1 | . 1 . . . Electromagnetic 11 | 2 7 . . 2 Robot Hit Streak 26 | 1 26 . . 7 Robot Miss Streak 2 | 2 2 . . 2 Penetration Max . | . . . . . Secondary Targets . | . . . . . Shots Hit Robots 56 | 1 43 . . 12 Core Hits 21 | 1 13 . . 7 Critical Kills . | . . . . . Critical Parts Destroyed . | . . . . . Critical Strikes . | . . . . . Melee Attacks 7 | . . . . 7 Impact . | . . . . . Slashing 7 | . . . . 7 Piercing . | . . . . . Sneak Attacks 1 | . . . . 1 Combat Hostiles . | . . . . . Follow-up Attacks . | . . . . . Damage Inflicted 882 | 13 499 . . 370 Guns 527 | 13 447 . . 67 Cannons 11 | . . . . 11 Explosions 143 | . 52 . . 91 Melee 201 | . . . . 201 Ramming . | . . . . . Kinetic 450 | . 383 . . 67 Thermal 29 | . 29 . . . Explosive 23 | . 23 . . . Electromagnetic 179 | 13 64 . . 102 Impact . | . . . . . Slashing 201 | . . . . 201 Piercing . | . . . . . Highest Corruption 4 | . 2 2 2 4 Average Corruption 2 | . 2 2 2 2 Corruption Purged . | . . . . . Corruption Blocked . | . . . . . Effects 21 | . 9 2 4 6 Message Errors 3 | . 1 . 2 . Matter Fused 7 | . 3 1 1 2 Heat Flow Errors 3 | . 1 1 . 1 Energy Discharges 3 | . 2 . . 1 Data Loss (minor) 3 | . 1 . . 2 Data Loss (major) 1 | . . . 1 . Alerts 1 | . 1 . . . Overload Shots . | . . . . . Overflow Damage 140 | . 127 . . 13 Projectiles . | . . . . . Explosions 127 | . 127 . . . Melee 13 | . . . . 13 Knockbacks . | . . . . . Impact . | . . . . . Kinetic . | . . . . . Secondary . | . . . . . Self-Inflicted Damage 194 | . 194 . . . Shots 3 | . 3 . . . Rammed . | . . . . . Targets Rammed . | . . . . . Kicked . | . . . . . Crushed . | . . . . . Highest Temperature 276 | . 121 173 . 276 Average Temperature 56 | . 30 89 . 116 Received Heat Transfer 219 | . 159 . . 60 Effects 1 | . . . . 1 Energy Bleed 1 | . . . . 1 Siege Activations . | . . . . . Robots Corrupted . | . . . . . Combat Hostiles . | . . . . . Parts Fried . | . . . . . Impact Corruptions . | . . . . . Robots Melted . | . . . . . Combat Hostiles . | . . . . . Parts Melted . | . . . . . Heat Transferred 50 | . 50 . . . Parts Sabotaged . | . . . . . Parts Stolen . | . . . . . Parts Stripped . | . . . . . Power Chain Reactions . | . . . . . Missiles Intercepted . | . . . . . Latent Energy Used 91 | . . . . 91 LE Corruption 2 | . . . . 2 Alert | -11 -10 -10 -10 -9 ------- Run | Scr Mat Min Exi Min Peak Influence 230 | 5 230 31 . 98 Initial 31 | . 3 31 . . Average 74 | 1 101 31 . 50 Maximum Alert Level 1 | . 1 . . . Low Security (%) 93 | 100 88 100 . 100 Level 1 6 | . 11 . . . Level 2 . | . . . . . Level 3 . | . . . . . Level 4 . | . . . . . Level 5 . | . . . . . High Security . | . . . . . Max Security . | . . . . . Squads Dispatched 2 | . 2 . . . Investigation 2 | . 2 . . . Extermination . | . . . . . Reinforcement . | . . . . . Assault . | . . . . . Garrison . | . . . . . Intercept . | . . . . . Searches Triggered . | . . . . . Construction Impeded . | . . . . . Haulers Reinforced . | . . . . . Active Scanning Responses . | . . . . . Cargo Convoy Interrupts . | . . . . . Stealth | -11 -10 -10 -10 -9 --------- Run | Scr Mat Min Exi Min Distress Signals . | . . . . . Communications Jammed . | . . . . . Distress Signals . | . . . . . Times Spotted 17 | . 13 . . 4 Peak Tracking Total 4 | . 3 . . 4 Tactical Retreats 3 | . 1 . . 2 Traps | -11 -10 -10 -10 -9 ------- Run | Scr Mat Min Exi Min Traps Triggered 2 | . 2 . . . Indirectly . | . . . . . Trap Hack Attempts . | . . . . . Triggered . | . . . . . Disarmed . | . . . . . Reprogrammed . | . . . . . Reused . | . . . . . Traps Extracted . | . . . . . Installed . | . . . . . Triggered . | . . . . . Machines | -11 -10 -10 -10 -9 ---------- Run | Scr Mat Min Exi Min Machines Disabled 2 | . 2 . . . Max in Single Turn 2 | . 2 . . . Machines Sabotaged . | . . . . . Garrisons Compromised . | . . . . . Overloaded Fab Kills . | . . . . . Hacking | -11 -10 -10 -10 -9 --------- Run | Scr Mat Min Exi Min Machines Accessed 9 | . 7 1 1 . Terminals 7 | . 7 . . . Fabricators . | . . . . . Repair Stations . | . . . . . Recycling Units . | . . . . . Scanalyzers . | . . . . . Garrison Access . | . . . . . Total Hacks 18 | . 16 1 1 . Successful 14 | . 12 1 1 . Failed 4 | . 4 . . . Catastrophic . | . . . . . Database Lockouts . | . . . . . Manual 11 | . 10 . 1 . Terminals 16 | . 16 . . . Fabricators . | . . . . . Repair Stations . | . . . . . Recycling Units . | . . . . . Scanalyzers . | . . . . . Garrison Access . | . . . . . Terminal Hacks 6 | . 4 1 1 . Prototype ID Bank 3 | . 3 . . . Open Door 1 | . . 1 . . Alert Level 1 | . 1 . . . EX-Prototype ID Bank 1 | . . . 1 . Fabricator Hacks . | . . . . . Repair Station Hacks . | . . . . . Recycling Unit Hacks . | . . . . . Scanalyzer . | . . . . . Garrison Access Hacks . | . . . . . Unauthorized Hacks 7 | . 7 . . . Terminals 7 | . 7 . . . Botnet 7 | . 7 . . . Fabricators . | . . . . . Repair Stations . | . . . . . Recycling Units . | . . . . . Scanalyzers . | . . . . . Garrison Access . | . . . . . Data Cores Recovered . | . . . . . Used . | . . . . . Hacking Detections 2 | . 2 . . . Full Trace Events 1 | . 1 . . . Feedback Events . | . . . . . Feedback Blocked . | . . . . . Robot Schematics Acquired . | . . . . . Robots Built . | . . . . . Authchips . | . . . . . Time . | . . . . . Total Robot Build Rating . | . . . . . Part Schematics Acquired . | . . . . . Parts Built . | . . . . . Authchips . | . . . . . Time . | . . . . . Total Part Build Rating . | . . . . . Parts Repaired . | . . . . . Time . | . . . . . Parts Recycled . | . . . . . Recycled Matter . | . . . . . Retrieved Matter . | . . . . . Retrieved Components . | . . . . . Parts Scanalyzed . | . . . . . Part Schematics Acquired . | . . . . . Parts Damaged . | . . . . . Bothacking | -11 -10 -10 -10 -9 ------------ Run | Scr Mat Min Exi Min Used RIF Installer . | . . . . . Robots Hacked . | . . . . . Non-combat . | . . . . . Combat . | . . . . . Robot Hacks Applied . | . . . . . Relay Couplers Released . | . . . . . Fabnet Peak Effective % . | . . . . . Robots Rewired . | . . . . . Allies Hacked . | . . . . . Hacks Repelled . | . . . . . Allies | -11 -10 -10 -10 -9 -------- Run | Scr Mat Min Exi Min Total Allies . | . . . . . Largest Group . | . . . . . Highest-Rated Group . | . . . . . Highest-Rated Ally . | . . . . . Total Orders . | . . . . . Ally Attacks . | . . . . . Total Damage . | . . . . . Kills . | . . . . . Allies Corrupted . | . . . . . Allies Melted . | . . . . . Intel | -11 -10 -10 -10 -9 ------- Run | Scr Mat Min Exi Min Robot Analysis Total . | . . . . . Derelict Logs Recovered 2 | . . 2 . . Drone Launches . | . . . . . Drone Recoveries . | . . . . . Exploration | -11 -10 -10 -10 -9 ------------- Run | Scr Mat Min Exi Min Turns Passed 1842 | 75 872 256 364 275 Spaces Moved 1402 | 56 664 209 231 242 Core 12 | 12 . . . . Treads . | . . . . . Legs 784 | . 348 209 227 . Wheels 606 | 44 316 . 4 242 Hover . | . . . . . Flight . | . . . . . Fastest Speed 50 | 50 100 120 110 80 Average Speed 116 | 89 110 120 153 98 Slowest Speed 190 | 100 120 120 190 110 Overloaded Moves . | . . . . . Propulsion Burnouts . | . . . . . Robots Hopped . | . . . . . Cave-ins Triggered 1 | . . . . 1 Exploration Rate (%) 46 | 4 86 42 60 38 Regions Visited 4 Branch Regions 3 Pre-discovered Areas . | . . . . . Known Exits Taken . | . . . . . Unknown Exits Taken 4 | 1 1 1 1 . Scrap Searched 1 | . . 1 . . Spaces Dug 2 | . . . . 2 Terrain Destroyed 39 | . 37 . . 2 Melee 2 | . . . . 2 Projectile . | . . . . . AOE 37 | . 37 . . . Terrain Rammed . | . . . . . Walls Destroyed . | . . . . . Machines Disabled . | . . . . . Actions | -11 -10 -10 -10 -9 --------- Run | Scr Mat Min Exi Min Total 1536 | 74 748 214 240 260 Wait 37 | . 36 . . 1 Move 1398 | 55 663 208 230 242 Hop . | . . . . . Pick Up 23 | 9 10 2 1 1 Fast Attach 4 | 4 . . . . Attach 12 | 3 7 . 1 1 Detach . | . . . . . Swap 11 | 1 1 2 4 3 Drop 7 | . 1 2 4 . Fire 37 | 2 30 . . 5 Melee 7 | . . . . 7 Ram . | . . . . . Kick . | . . . . . Crush . | . . . . . Escape Stasis . | . . . . . Rewire . | . . . . . Trap . | . . . . . Miscellaneous . | . . . . . Route ------- -11/Scrapyard -10/Materials (discovered 3 exits: [*Mat x2] / *Min) -10/Mines -10/Exiles -9/Mines History --------- Turn | Location | Event 5 | -11/Scrapyard | Discovered new exit (range 15) 76 | -11/Scrapyard | Entered Materials 301 | -10/Materials | Build established: Mutant 354 | -10/Materials | Discovered new exit (range 15) 398 | -10/Materials | Discovered new exit (range 16) 503 | -10/Materials | Core integrity fell below 50% 533 | -10/Materials | Lost 5 parts (1p2n1u1w) 640 | -10/Materials | Discovered new exit (range 7) 948 | -10/Materials | Entered Mines 951 | -10/Mines | Met a Derelict bent on vengeance 959 | -10/Mines | Learned Materials emergency access door positions 977 | -10/Mines | Learned 4 Materials zone layouts 1000 | -10/Mines | Found the Drone Emporium 1009 | -10/Mines | Found Prototype Device 1061 | -10/Mines | A weapon hastily lodged in a ceiling crevice suddenly fell to the ground 1101 | -10/Mines | Deemed a non-threat by the Exiles lab entrance 1101 | -10/Mines | Discovered new exit (range 5) 1204 | -10/Mines | Entered Exiles 1232 | -10/Exiles | Met 8R-AWN 1254 | -10/Exiles | Met EX-HEX 1293 | -10/Exiles | Met EX-BIN 1308 | -10/Exiles | Aligned with FarCom system 1309 | -10/Exiles | Given EX-Vault access code 1336 | -10/Exiles | Opened EX-Vault 1345 | -10/Exiles | Identified Splice Drone Bay 1353 | -10/Exiles | Found Latent Energy Streamer 1399 | -10/Exiles | Warned to stay clear of 0b10 Research branches 1456 | -10/Exiles | Met EX-DEC 1537 | -10/Exiles | Discovered new exit (range 14) 1568 | -10/Exiles | Left Exiles lab with Latent Energy Streamer 1568 | -10/Exiles | Entered Mines 1769 | -9/Mines | Excavation squad dispatched 1769 | -9/Mines | A large section of the Mines collapsed 1775 | -9/Mines | Core integrity fell below 20% 1844 | -9/Mines | Crushed by falling debris 1844 | -9/Mines | Smashed by cave-in Last Messages --------------- 01760_ System corrupted: Matter fused (-9). 01769_ ALERT: Suspicious cave-in, suspected derelict activity in mines. Dispatching escorted excavation squad. 01784_ as-63017 misfires. 01785_ Destroyed Asb. F-torch. 01788_ as-63017 destroyed. 01793_ Acquired 11 matter. 01795_ System corrupted: Component data lost. 01805_ T-07 Excavator is excavating. 01839_ System corrupted: Matter fused (-7). 01844_ The unstable cave ceiling collapses. 01844_ Crushed by falling debris. 01844_ Structural Scanner destroyed. 01844_ System corrupted by crushing effect (+3). 01844_ Ripper destroyed. 01844_ System corrupted by crushing effect (+4). 01844_ Wheel destroyed. 01844_ System corrupted by crushing effect (+5). 01844_ Wheel destroyed. 01844_ System corrupted by crushing effect (+2). Map ----- +----------------------------------------------------+ | ###?????????????????????? | | ###??????????????????????? | | ##???????????????????????? | | ###???????????????????????? | | ###????????????????????????? | | ###??????????????########??? | | [ ##??????????????########??? | | = ##??????????????## ##??? | | * ###??????????????## ##??? | | ###??????????????### ##??? | | ##########?########## ##### | | ##################### ##### | | ##### ##### ## | | # #### #### ## | | # ##### #### ####### ## | | ##### #### ####### ## | | ## ###?## #### ###### ## | | #######?## #### #### ## | | ######??## ##### #### ## | | ???????### ###### #### ### | | ??????#### ## ### ## #### | | ??????### ### ###? | | ?????### #### ##? | | ?????## "## #### ##? | | ?????## ######### ##? | | ?????### #########@# ###? | | ?????######## ###???## ######? | | ??????######## ##???########?? | | ???????????### ####???####?????? | | ????????????## ####????????????? | | ????????????## ##??????????????? | | ????????????## ##??????????????? | | ???????????? ##??????????????? | | ????????????## ##??????????????? | | ????????????## ##??????????????? | | ?????????????? ??????????????? | | ?????????????? ????????????????? | | ???????????????????????????????? | | ???????????????????????????????? | | ???????????????????????????????? | | ???????????????????????????????? | | ???????????????????????????????? | | ???????????????????????????????? | | ???????????????????????????????? | | ???????????????????????????????? | | ???????????????????????????????? | | ???????????????????????????????? | | ???????????????????????????????? | | ???????????????????????????????? | | ???????????????????????????????? | +----------------------------------------------------+ Best States ------------- Heat Dissipation 25 Energy Generation 10 Energy Capacity 250 Matter Stores 300 Matter Capacity 300 Sight Range 16 Terrain Scan Density 10 Armor Coverage 150 Evasion (%) 55 Item Schematics ----------------- None Robot Schematics ------------------ None Fabricated ------------ Nothing Alien Tech Used ----------------- None Achievements -------------- None Challenges ------------ None Game ------ Seed DrainedRiotShotgun Manual? 0 Play Time 00:17:03 Cumulative 113.7 hours Start 2022.03.27 @ 13:57:30 End 2022.03.27 @ 14:11:35 Sessions 1 Manual Loads 0 Difficulty Rogue Special Mode None Game No. 41 Rogue 23 Adventurer 14 Explorer 4 Win Type - Total 14 Types 8/5/0/0/0/0/0/0/1 Lore% 50 Gallery% 57 Achievement% 57 Wizard Run 0 Options --------- ASCII 0 Keyboard 0 Movement Mouse Keybinds 0 Fullscreen 1 Font 18/SmallcapsGlow Map View 76x50 Tactical HUD 1 Map Filters NONE Filters NONE Steam 1 RUN: e3cedb1f-0323-4c6d-afc6-04980f6bc4d5